[Event "*** Titled Tuesday 3|2 Blitz"]
[Site "Chess.com"]
[Date "2015.06.02"]
[Round "1"]
[White "Daniel_Fridman"]
[Black "IMRosen"]
[Result "1-0"]
[WhiteElo "2563"]
[BlackElo "2240"]
[TimeControl "180+2"]
[EndTime "11:12:47 PDT"]
[Termination "Daniel_Fridman won by resignation"]

1. d4 {[%clk 0:02:56.6]} 1... d5 {[%clk 0:03:01]} 2. c4 {[%clk 0:02:55.4]} 2...
e6 {[%clk 0:03:02.2]} 3. Nc3 {[%clk 0:02:55.8]} 3... Nf6 {[%clk 0:03:03.9]} 4.
cxd5 {[%clk 0:02:55.8]} 4... exd5 {[%clk 0:03:05.8]} 5. Bg5 {[%clk 0:02:56.2]}
5... c6 {[%clk 0:03:06.5]} 6. Qc2 {[%clk 0:02:55.8]} 6... Be7 {[%clk 0:02:57.8]}
7. e3 {[%clk 0:02:56.3]} 7... Nbd7 {[%clk 0:02:59.1]} 8. Bd3 {[%clk 0:02:56.9]}
8... Nh5 {[%clk 0:03:00.1]} 9. Bxe7 {[%clk 0:02:49.4]} 9... Qxe7 {[%clk
0:03:02]} 10. O-O-O {[%clk 0:02:45]} 10... Nb6 {[%clk 0:03:03.2]} 11. h3 {[%clk
0:02:44.5]} 11... Be6 {[%clk 0:02:58.9]} 12. Nf3 {[%clk 0:02:44]} 12... O-O-O
{[%clk 0:02:57.2]} 13. Kb1 {[%clk 0:02:44.5]} 13... Kb8 {[%clk 0:02:58.3]} 14.
a4 {[%clk 0:02:44.2]} 14... Nf6 {[%clk 0:02:49.4]} 15. a5 {[%clk 0:02:43.5]}
15... Nc8 {[%clk 0:02:50.3]} 16. a6 {[%clk 0:02:42.5]} 16... b6 {[%clk 0:02:47]}
17. Rc1 {[%clk 0:02:42.5]} 17... Qd6 {[%clk 0:02:37.4]} 18. Ne5 {[%clk
0:02:26.9]} 18... Ne7 {[%clk 0:02:35]} 19. f4 {[%clk 0:02:19.3]} 19... Rhf8
{[%clk 0:02:21.6]} 20. g4 {[%clk 0:02:17.8]} 20... Rc8 {[%clk 0:02:18.7]} 21. f5
{[%clk 0:02:06]} 21... Bd7 {[%clk 0:02:19.3]} 22. g5 {[%clk 0:02:05.8]} 22...
Ne8 {[%clk 0:02:17.1]} 23. Qh2 {[%clk 0:01:59.8]} 23... Ka8 {[%clk 0:02:09.5]}
24. e4 {[%clk 0:01:52]} 24... f6 {[%clk 0:02:08.3]} 25. gxf6 {[%clk 0:01:50.8]}
25... Nxf6 {[%clk 0:02:00.8]} 26. exd5 {[%clk 0:01:50.7]} 26... Nexd5 {[%clk
0:01:52.9]} 27. Rhg1 {[%clk 0:01:36.1]} 27... Nb4 {[%clk 0:01:40.2]} 28. Bc4
{[%clk 0:01:02.2]} 28... Bxf5+ {[%clk 0:01:40.1]} 29. Ka1 {[%clk 0:01:02.6]}
29... g6 {[%clk 0:01:35.7]} 30. Rgd1 {[%clk 0:00:59.7]} 30... Nfd5 {[%clk
0:01:20.2]} 31. Qd2 {[%clk 0:00:58.7]} 31... Rfe8 {[%clk 0:01:08.6]} 32. Bb3
{[%clk 0:00:59]} 32... Nxa6 {[%clk 0:01:05.9]} 33. Bxd5 {[%clk 0:00:32.2]} 33...
cxd5 {[%clk 0:01:06]} 34. Nb5 {[%clk 0:00:33.6]} 34... Qf8 {[%clk 0:00:50.1]}
35. Rc3 {[%clk 0:00:26.4]} 35... Rxc3 {[%clk 0:00:45.9]} 36. bxc3 {[%clk
0:00:23.8]} 36... Rc8 {[%clk 0:00:31.7]} 37. Qa2 {[%clk 0:00:24.3]} 37... Kb7
{[%clk 0:00:33]} 38. Kb2 {[%clk 0:00:22.7]} 38... Be6 {[%clk 0:00:28.6]} 39. Kb3
{[%clk 0:00:23.4]} 39... Ra8 {[%clk 0:00:14.4]} 40. Qa4 {[%clk 0:00:17]} 40...
Nc7 {[%clk 0:00:08.9]} 41. Nxc7 {[%clk 0:00:16.8]} 41... Qd6 {[%clk 0:00:08]}
42. Nb5 {[%clk 0:00:16.9]} 42... Qf8 {[%clk 0:00:09.3]} 43. Qb4 {[%clk
0:00:14.9]} 43... a5 {[%clk 0:00:05.1]} 44. Qxf8 {[%clk 0:00:14.6]} 44... Rxf8
{[%clk 0:00:07]} 45. h4 {[%clk 0:00:15.7]} 45... Rf4 {[%clk 0:00:07.3]} 46. Re1
{[%clk 0:00:15]} 46... Bf5 {[%clk 0:00:03.9]} 47. Nd6+ {[%clk 0:00:15.6]} 47...
Kc7 {[%clk 0:00:05.6]} 48. Nxf5 {[%clk 0:00:17]} 48... gxf5 {[%clk 0:00:07.2]}
49. h5 {[%clk 0:00:14.3]} 49... Rh4 {[%clk 0:00:08.3]} 50. Rg1 {[%clk
0:00:15.2]} 50... Rxh5 {[%clk 0:00:09.7]} 51. Rg7+ {[%clk 0:00:16.8]} 51... Kd6
{[%clk 0:00:10.8]} 52. Rb7 {[%clk 0:00:17.8]} 52... f4 {[%clk 0:00:09.9]} 53.
Rxb6+ {[%clk 0:00:18.7]} 53... Ke7 {[%clk 0:00:11.6]} 54. Rb5 {[%clk 0:00:18.2]}
54... Ke6 {[%clk 0:00:09.7]} 55. Rxa5 {[%clk 0:00:19]} 55... Rf5 {[%clk
0:00:09.5]} 56. Ra6+ {[%clk 0:00:17.9]} 56... Ke7 {[%clk 0:00:09]} 57. Rh6
{[%clk 0:00:18.8]} 57... f3 {[%clk 0:00:10]} 58. Rxh7+ {[%clk 0:00:19.9]} 58...
Kd6 {[%clk 0:00:10.8]} 59. Rh1 {[%clk 0:00:20.1]} 59... f2 {[%clk 0:00:11.2]}
60. Rf1 {[%clk 0:00:21.7]} 60... Rf8 {[%clk 0:00:12.6]} 61. Nd3 {[%clk
0:00:22.5]} 61... Rf3 {[%clk 0:00:12.7]} 62. Kc2 {[%clk 0:00:23.7]} 62... Rf8
{[%clk 0:00:13.7]} 63. Rxf2 {[%clk 0:00:24.8]} 63... Ra8 {[%clk 0:00:15.6]} 64.
Rf6+ {[%clk 0:00:25.7]} 64... Ke7 {[%clk 0:00:17.2]} 65. Rb6 {[%clk 0:00:26.5]}
65... Ra2+ {[%clk 0:00:17.7]} 66. Kb3 {[%clk 0:00:27.1]} 66... Ra1 {[%clk
0:00:19.4]} 67. Kb2 {[%clk 0:00:24.9]} 67... Rh1 {[%clk 0:00:18.8]} 68. Nb4
{[%clk 0:00:24.8]} 68... Rh2+ {[%clk 0:00:20.2]} 69. Kb3 {[%clk 0:00:25.6]}
69... Rh5 {[%clk 0:00:21.9]} 70. Rb5 {[%clk 0:00:26.5]} 70... Rh1 {[%clk
0:00:23.8]} 71. Nxd5+ {[%clk 0:00:27.1]} 71... Ke6 {[%clk 0:00:25.7]} 72. Nb4
{[%clk 0:00:28.4]} 72... Kd6 {[%clk 0:00:27.6]} 73. Rb6+ {[%clk 0:00:29]} 73...
Kc7 {[%clk 0:00:28.4]} 74. Nd5+ {[%clk 0:00:27.7]} 74... Kd7 {[%clk 0:00:30]}
75. Kc4 {[%clk 0:00:29.2]} 75... Ra1 {[%clk 0:00:30.5]} 76. Kc5 {[%clk
0:00:28.6]} 76... Ra5+ {[%clk 0:00:31.5]} 77. Rb5 {[%clk 0:00:29.9]} 77... Ra3
{[%clk 0:00:30.6]} 78. Rb7+ {[%clk 0:00:29.5]} 78... Kc8 {[%clk 0:00:31.4]} 79.
Rc7+ {[%clk 0:00:28.6]} 79... Kb8 {[%clk 0:00:31.6]} 80. c4 {[%clk 0:00:29.4]}
80... Ra5+ {[%clk 0:00:31.4]} 81. Kd6 {[%clk 0:00:29.6]} 81... Ra6+ {[%clk
0:00:28.1]} 82. Rc6 {[%clk 0:00:30.3]} 82... Ra7 {[%clk 0:00:27.8]} 83. Rb6+
{[%clk 0:00:30.9]} 83... Kc8 {[%clk 0:00:28.1]} 84. Ne7+ {[%clk 0:00:31.7]} 1-0

[Event "*** Titled Tuesday 3|2 Blitz"]
[Site "Chess.com"]
[Date "2015.06.02"]
[Round "2"]
[White "AlexanderL"]
[Black "Lupul_Cenusiu"]
[Result "1-0"]
[WhiteElo "2535"]
[BlackElo "2446"]
[TimeControl "180+2"]
[EndTime "11:18:39 PDT"]
[Termination "AlexanderL won by resignation"]

1. d4 {[%clk 0:02:49.2]} 1... Nf6 {[%clk 0:03:00.1]} 2. Bf4 {[%clk 0:02:49.4]}
2... d6 {[%clk 0:03:00.9]} 3. Nc3 {[%clk 0:02:49.4]} 3... Nbd7 {[%clk
0:02:59.8]} 4. Nf3 {[%clk 0:02:49.1]} 4... g6 {[%clk 0:02:55.9]} 5. e4 {[%clk
0:02:50.2]} 5... Bg7 {[%clk 0:02:56.9]} 6. Bc4 {[%clk 0:02:47.8]} 6... O-O
{[%clk 0:02:55.7]} 7. h3 {[%clk 0:02:48.6]} 7... Nb6 {[%clk 0:02:54.7]} 8. Bb3
{[%clk 0:02:49.3]} 8... c6 {[%clk 0:02:54.4]} 9. O-O {[%clk 0:02:49.6]} 9... d5
{[%clk 0:02:54.4]} 10. Re1 {[%clk 0:02:50.1]} 10... h6 {[%clk 0:02:44.5]} 11. e5
{[%clk 0:02:50.2]} 11... Ne8 {[%clk 0:02:44.7]} 12. Ne2 {[%clk 0:02:50.4]} 12...
Nc7 {[%clk 0:02:44.6]} 13. c3 {[%clk 0:02:51.1]} 13... Bf5 {[%clk 0:02:43]} 14.
Ng3 {[%clk 0:02:50.8]} 14... e6 {[%clk 0:02:43.2]} 15. h4 {[%clk 0:02:43.3]}
15... Nd7 {[%clk 0:02:37.6]} 16. Qd2 {[%clk 0:02:39.3]} 16... Kh7 {[%clk
0:02:29.3]} 17. h5 {[%clk 0:02:32.8]} 17... c5 {[%clk 0:02:13.2]} 18. hxg6+
{[%clk 0:02:23.9]} 18... fxg6 {[%clk 0:02:13.5]} 19. Nxf5 {[%clk 0:02:24.7]}
19... gxf5 {[%clk 0:02:10.9]} 20. g3 {[%clk 0:02:23.3]} 20... cxd4 {[%clk
0:02:00.1]} 21. cxd4 {[%clk 0:02:23.4]} 21... Nb6 {[%clk 0:01:51.8]} 22. Kg2
{[%clk 0:02:24.5]} 22... Rh8 {[%clk 0:01:49.9]} 23. Rh1 {[%clk 0:02:19.8]} 23...
Qf8 {[%clk 0:01:46.3]} 24. Rac1 {[%clk 0:02:18.1]} 24... Na6 {[%clk 0:01:47]}
25. Ng5+ {[%clk 0:02:18.3]} 25... Kg8 {[%clk 0:01:45.3]} 26. Nxe6 {[%clk
0:02:20.2]} 26... Qe7 {[%clk 0:01:45.6]} 27. Nxg7 {[%clk 0:02:18.5]} 27... Qxg7
{[%clk 0:01:45.5]} 28. Bxh6 {[%clk 0:02:18.2]} 28... Qg4 {[%clk 0:01:44.4]} 29.
Qg5+ {[%clk 0:02:18.5]} 29... Qxg5 {[%clk 0:01:44.8]} 30. Bxg5 {[%clk
0:02:19.9]} 30... Rxh1 {[%clk 0:01:46]} 31. Rxh1 {[%clk 0:02:20.6]} 31... Nc4
{[%clk 0:01:41.7]} 32. Bxc4 {[%clk 0:02:19.5]} 32... dxc4 {[%clk 0:01:42.6]} 33.
Bf6 {[%clk 0:02:02.4]} 33... Re8 {[%clk 0:01:42]} 34. d5 {[%clk 0:01:54.5]}
34... Nc5 {[%clk 0:01:41.8]} 35. e6 {[%clk 0:01:51.3]} 35... Nxe6 {[%clk
0:01:40.8]} 36. Rh8+ {[%clk 0:01:49.9]} 36... Kf7 {[%clk 0:01:41.7]} 37. Rxe8
{[%clk 0:01:51.8]} 1-0

[Event "*** Titled Tuesday 3|2 Blitz"]
[Site "Chess.com"]
[Date "2015.06.02"]
[Round "2"]
[White "Ar4uha"]
[Black "redchessman"]
[Result "1-0"]
[WhiteElo "2446"]
[BlackElo "2133"]
[TimeControl "180+2"]
[EndTime "11:18:49 PDT"]
[Termination "Ar4uha won by resignation"]

1. e4 {[%clk 0:03:01.9]} 1... e5 {[%clk 0:02:59.1]} 2. Nf3 {[%clk 0:02:59.5]}
2... Nc6 {[%clk 0:03:00.1]} 3. d4 {[%clk 0:03:00.8]} 3... exd4 {[%clk
0:03:00.8]} 4. Nxd4 {[%clk 0:03:02]} 4... Bb4+ {[%clk 0:03:02.4]} 5. c3 {[%clk
0:03:02.7]} 5... Bc5 {[%clk 0:03:03.7]} 6. Be3 {[%clk 0:03:03.3]} 6... Bb6
{[%clk 0:03:04.8]} 7. Qg4 {[%clk 0:03:04.4]} 7... Nf6 {[%clk 0:02:53.6]} 8. Qxg7
{[%clk 0:03:00.8]} 8... Rg8 {[%clk 0:02:53.9]} 9. Qh6 {[%clk 0:02:54.6]} 9...
Rg6 {[%clk 0:02:51]} 10. Qh4 {[%clk 0:02:54.6]} 10... Rg4 {[%clk 0:02:51.3]} 11.
Qh6 {[%clk 0:02:41.9]} 11... Rg6 {[%clk 0:02:50.8]} 12. Qf4 {[%clk 0:02:39.5]}
12... Rg4 {[%clk 0:02:33.1]} 13. Qf3 {[%clk 0:02:39.7]} 13... Ne5 {[%clk
0:02:23.1]} 14. Qd1 {[%clk 0:02:39.7]} 14... Rxe4 {[%clk 0:02:19]} 15. Be2
{[%clk 0:02:32.9]} 15... Neg4 {[%clk 0:02:01.8]} 16. Bg5 {[%clk 0:02:26.5]}
16... Nxf2 {[%clk 0:01:21.4]} 17. Kxf2 {[%clk 0:02:16.5]} 17... Ng4+ {[%clk
0:01:12.2]} 18. Bxg4 {[%clk 0:02:10.7]} 18... Qxg5 {[%clk 0:01:13.1]} 19. Re1
{[%clk 0:02:01.9]} 19... d5 {[%clk 0:00:49.6]} 20. Bxc8 {[%clk 0:02:01.6]} 20...
Rxc8 {[%clk 0:00:37.8]} 21. Nd2 {[%clk 0:02:03]} 21... Bxd4+ {[%clk 0:00:30.1]}
22. cxd4 {[%clk 0:02:02.8]} 22... Qh4+ {[%clk 0:00:23.9]} 23. Kg1 {[%clk
0:02:00.3]} 1-0

[Event "*** Titled Tuesday 3|2 Blitz"]
[Site "Chess.com"]
[Date "2015.06.02"]
[Round "2"]
[White "vovkcoach"]
[Black "Aragon"]
[Result "0-1"]
[WhiteElo "2447"]
[BlackElo "2110"]
[TimeControl "180+2"]
[EndTime "11:18:54 PDT"]
[Termination "Aragon won by resignation"]

1. Nf3 {[%clk 0:03:01.9]} 1... d5 {[%clk 0:02:50.5]} 2. d4 {[%clk 0:03:02.2]}
2... Bf5 {[%clk 0:02:45.2]} 3. c4 {[%clk 0:03:02.8]} 3... e6 {[%clk 0:02:37.8]}
4. Nc3 {[%clk 0:03:03]} 4... c6 {[%clk 0:02:37.2]} 5. Qb3 {[%clk 0:03:03.9]}
5... Qb6 {[%clk 0:02:27.8]} 6. c5 {[%clk 0:03:04.5]} 6... Qc7 {[%clk 0:02:20.5]}
7. Bf4 {[%clk 0:03:04.5]} 7... Qc8 {[%clk 0:02:19.7]} 8. e3 {[%clk 0:03:05.3]}
8... Nd7 {[%clk 0:02:19.7]} 9. Rc1 {[%clk 0:03:01.1]} 9... Ngf6 {[%clk
0:02:15.8]} 10. h3 {[%clk 0:03:00.2]} 10... h6 {[%clk 0:02:08]} 11. Be2 {[%clk
0:03:00.1]} 11... Ne4 {[%clk 0:02:03.6]} 12. Nxe4 {[%clk 0:02:58.9]} 12... Bxe4
{[%clk 0:02:00.4]} 13. O-O {[%clk 0:02:59.2]} 13... Bxf3 {[%clk 0:01:52.3]} 14.
Bxf3 {[%clk 0:03:01.1]} 14... Be7 {[%clk 0:01:50.2]} 15. e4 {[%clk 0:02:59]}
15... dxe4 {[%clk 0:01:34.7]} 16. Bxe4 {[%clk 0:03:00.9]} 16... Nf6 {[%clk
0:01:35]} 17. Bf3 {[%clk 0:03:01.6]} 17... O-O {[%clk 0:01:35.4]} 18. Rfe1
{[%clk 0:03:02.8]} 18... Rd8 {[%clk 0:01:31.5]} 19. Qc4 {[%clk 0:03:02.3]} 19...
Nd5 {[%clk 0:01:31.4]} 20. Bd2 {[%clk 0:03:03.2]} 20... Bf6 {[%clk 0:01:31.2]}
21. Be4 {[%clk 0:02:55.1]} 21... Rd7 {[%clk 0:01:21]} 22. Rcd1 {[%clk
0:02:54.1]} 22... Qd8 {[%clk 0:01:19.4]} 23. Bb1 {[%clk 0:02:54.8]} 23... Ne7
{[%clk 0:01:16.2]} 24. Qc2 {[%clk 0:02:53.6]} 24... Ng6 {[%clk 0:01:11.9]} 25.
Rxe6 {[%clk 0:02:50]} 25... fxe6 {[%clk 0:00:42.4]} 26. Qxg6 {[%clk 0:02:49.2]}
26... Rxd4 {[%clk 0:00:42.3]} 27. Qc2 {[%clk 0:02:29.2]} 27... Qd5 {[%clk
0:00:38.2]} 28. Qh7+ {[%clk 0:02:18.5]} 28... Kf7 {[%clk 0:00:38.1]} 0-1

[Event "*** Titled Tuesday 3|2 Blitz"]
[Site "Chess.com"]
[Date "2015.06.02"]
[Round "2"]
[White "MinhGTrAn"]
[Black "only_defence"]
[Result "1-0"]
[WhiteElo "2570"]
[BlackElo "1920"]
[TimeControl "180+2"]
[EndTime "11:19:03 PDT"]
[Termination "MinhGTrAn won by resignation"]

1. d4 {[%clk 0:03:01.9]} 1... Nf6 {[%clk 0:03:00.1]} 2. Bg5 {[%clk 0:03:02.9]}
2... e6 {[%clk 0:02:58.7]} 3. e3 {[%clk 0:03:03.1]} 3... h6 {[%clk 0:02:58.5]}
4. Bh4 {[%clk 0:03:02.9]} 4... c5 {[%clk 0:02:58.9]} 5. c3 {[%clk 0:03:03.5]}
5... Nc6 {[%clk 0:02:57.7]} 6. Nd2 {[%clk 0:03:04.8]} 6... d5 {[%clk 0:02:54.3]}
7. Ngf3 {[%clk 0:03:06.2]} 7... Bd6 {[%clk 0:02:49.9]} 8. Bd3 {[%clk 0:03:07]}
8... Qe7 {[%clk 0:02:50.3]} 9. O-O {[%clk 0:03:06.8]} 9... e5 {[%clk 0:02:44.6]}
10. e4 {[%clk 0:03:03.7]} 10... g5 {[%clk 0:02:33.5]} 11. Bg3 {[%clk 0:02:45.2]}
11... O-O {[%clk 0:02:28.3]} 12. exd5 {[%clk 0:02:36.2]} 12... Nxd5 {[%clk
0:02:25.5]} 13. dxe5 {[%clk 0:02:22.5]} 13... Bc7 {[%clk 0:02:18.9]} 14. Re1
{[%clk 0:02:15.5]} 14... Bg4 {[%clk 0:02:14.8]} 15. Qb3 {[%clk 0:02:08.7]} 15...
Nb6 {[%clk 0:02:14.6]} 16. Be4 {[%clk 0:01:44.1]} 16... Rad8 {[%clk 0:02:01.2]}
17. h3 {[%clk 0:01:44.6]} 17... Be6 {[%clk 0:01:42.8]} 18. Qc2 {[%clk 0:01:44]}
18... c4 {[%clk 0:01:35.9]} 19. Bxc6 {[%clk 0:01:44.6]} 19... bxc6 {[%clk
0:01:36.9]} 20. Ne4 {[%clk 0:01:46.5]} 20... Bf5 {[%clk 0:01:30.9]} 21. Nd4
{[%clk 0:01:42.9]} 21... Rxd4 {[%clk 0:01:10.3]} 22. cxd4 {[%clk 0:01:44.8]}
22... Kg7 {[%clk 0:01:08.9]} 23. Qc3 {[%clk 0:01:40.4]} 23... Rd8 {[%clk
0:01:04.9]} 24. Nd6 {[%clk 0:01:40.1]} 24... Bd3 {[%clk 0:01:05.5]} 25. b3
{[%clk 0:01:14.4]} 1-0

[Event "*** Titled Tuesday 3|2 Blitz"]
[Site "Chess.com"]
[Date "2015.06.02"]
[Round "2"]
[White "megarompa"]
[Black "Konavets"]
[Result "1-0"]
[WhiteElo "2705"]
[BlackElo "2427"]
[TimeControl "180+2"]
[EndTime "11:19:08 PDT"]
[Termination "megarompa won by resignation"]

1. d4 {[%clk 0:03:01.9]} 1... Nf6 {[%clk 0:03:00.7]} 2. Nf3 {[%clk 0:03:02.6]}
2... g6 {[%clk 0:03:00.7]} 3. c4 {[%clk 0:03:02.7]} 3... Bg7 {[%clk 0:03:01.8]}
4. Nc3 {[%clk 0:03:03.2]} 4... d5 {[%clk 0:03:01.8]} 5. Bg5 {[%clk 0:03:04.3]}
5... Ne4 {[%clk 0:03:00.7]} 6. cxd5 {[%clk 0:03:05.6]} 6... Nxg5 {[%clk
0:03:01]} 7. Nxg5 {[%clk 0:03:07.2]} 7... e6 {[%clk 0:03:01.7]} 8. Qd2 {[%clk
0:03:08.1]} 8... h6 {[%clk 0:03:01.3]} 9. Nh3 {[%clk 0:03:08.4]} 9... exd5
{[%clk 0:03:01.6]} 10. Qe3+ {[%clk 0:03:09.1]} 10... Kf8 {[%clk 0:02:25.7]} 11.
Nf4 {[%clk 0:03:08.1]} 11... c5 {[%clk 0:02:26.5]} 12. Qf3 {[%clk 0:03:06.6]}
12... cxd4 {[%clk 0:02:20.8]} 13. Ncxd5 {[%clk 0:03:07.4]} 13... Kg8 {[%clk
0:02:21.7]} 14. g3 {[%clk 0:02:36.7]} 14... Nc6 {[%clk 0:01:55.4]} 15. Bg2
{[%clk 0:02:37.2]} 15... Qa5+ {[%clk 0:01:56.6]} 16. b4 {[%clk 0:02:32.8]} 16...
Nxb4 {[%clk 0:01:57.4]} 17. O-O {[%clk 0:02:33.7]} 17... Nxd5 {[%clk 0:01:58.3]}
18. Nxd5 {[%clk 0:02:32.1]} 18... Be6 {[%clk 0:01:59.4]} 19. Nf4 {[%clk
0:02:27.3]} 19... Re8 {[%clk 0:01:57.8]} 20. Qxb7 {[%clk 0:02:22.5]} 20... d3
{[%clk 0:01:58.4]} 21. Rac1 {[%clk 0:02:01.3]} 21... dxe2 {[%clk 0:01:56.6]} 22.
Nxe2 {[%clk 0:02:03.2]} 22... Qxa2 {[%clk 0:01:55.9]} 23. Nf4 {[%clk 0:02:01.3]}
23... Bc4 {[%clk 0:01:53.5]} 24. Rxc4 {[%clk 0:01:55.6]} 24... Qxc4 {[%clk
0:00:50.4]} 25. Bd5 {[%clk 0:01:55.7]} 25... Qxd5 {[%clk 0:00:49.7]} 26. Nxd5
{[%clk 0:01:57.6]} 26... Rf8 {[%clk 0:00:49.7]} 27. Qxa7 {[%clk 0:01:56.8]}
27... Kh7 {[%clk 0:00:50.7]} 28. h4 {[%clk 0:01:58]} 28... h5 {[%clk 0:00:51.7]}
29. Re1 {[%clk 0:01:56.7]} 29... Bh6 {[%clk 0:00:51.7]} 30. Re7 {[%clk
0:01:56.4]} 30... Kg8 {[%clk 0:00:52.9]} 31. Nf6+ {[%clk 0:01:56.6]} 31... Kg7
{[%clk 0:00:54.4]} 32. Qd4 {[%clk 0:01:58.2]} 32... Rd8 {[%clk 0:00:55.8]} 33.
Nxh5+ {[%clk 0:01:53]} 33... Kg8 {[%clk 0:00:54.1]} 34. Nf6+ {[%clk 0:01:54]}
34... Kg7 {[%clk 0:00:54.2]} 35. Qe5 {[%clk 0:01:52.4]} 35... Rd1+ {[%clk
0:00:54.1]} 36. Kg2 {[%clk 0:01:53.8]} 1-0

[Event "*** Titled Tuesday 3|2 Blitz"]
[Site "Chess.com"]
[Date "2015.06.02"]
[Round "2"]
[White "Viaje"]
[Black "pKiLz5Rn9b"]
[Result "1/2-1/2"]
[WhiteElo "2168"]
[BlackElo "2325"]
[TimeControl "180+2"]
[EndTime "11:19:31 PDT"]
[Termination "Game drawn by agreement"]

1. d4 {[%clk 0:03:01.9]} 1... e6 {[%clk 0:03:01.3]} 2. e4 {[%clk 0:02:59.5]}
2... d5 {[%clk 0:03:02.2]} 3. exd5 {[%clk 0:03:01.4]} 3... exd5 {[%clk
0:03:01.5]} 4. Nf3 {[%clk 0:03:02.8]} 4... Bd6 {[%clk 0:02:59.6]} 5. c4 {[%clk
0:03:02.3]} 5... dxc4 {[%clk 0:02:59.2]} 6. Bxc4 {[%clk 0:03:02.5]} 6... Nf6
{[%clk 0:03:00.2]} 7. O-O {[%clk 0:03:03.3]} 7... O-O {[%clk 0:03:00.5]} 8. Nc3
{[%clk 0:03:04.2]} 8... Bg4 {[%clk 0:02:57.5]} 9. h3 {[%clk 0:03:03.9]} 9... Bh5
{[%clk 0:02:57.7]} 10. Bg5 {[%clk 0:03:05.2]} 10... Nbd7 {[%clk 0:02:57.8]} 11.
Re1 {[%clk 0:03:04.4]} 11... c6 {[%clk 0:02:53.9]} 12. Bb3 {[%clk 0:03:04]}
12... Qc7 {[%clk 0:02:50.6]} 13. Rc1 {[%clk 0:02:50.6]} 13... a6 {[%clk
0:02:39.9]} 14. g4 {[%clk 0:02:42.6]} 14... Bg6 {[%clk 0:02:39.6]} 15. Nh4
{[%clk 0:02:43.6]} 15... Bf4 {[%clk 0:02:34]} 16. Bxf4 {[%clk 0:02:26.8]} 16...
Qxf4 {[%clk 0:02:33.8]} 17. Nxg6 {[%clk 0:02:28.1]} 17... hxg6 {[%clk 0:02:34]}
18. Rc2 {[%clk 0:02:20.6]} 18... Rad8 {[%clk 0:02:34.2]} 19. Rce2 {[%clk
0:02:20.9]} 19... Nc5 {[%clk 0:02:31.2]} 20. d5 {[%clk 0:01:58.2]} 20... Nxb3
{[%clk 0:02:17.8]} 21. Qxb3 {[%clk 0:01:57.9]} 21... Nxd5 {[%clk 0:02:16.8]} 22.
Nxd5 {[%clk 0:01:54.5]} 22... cxd5 {[%clk 0:02:17.7]} 23. Qxb7 {[%clk
0:01:54.4]} 23... d4 {[%clk 0:02:14.8]} 24. Qe4 {[%clk 0:01:45.5]} 24... Qxe4
{[%clk 0:02:00.6]} 25. Rxe4 {[%clk 0:01:47.4]} 25... f5 {[%clk 0:02:02.3]} 26.
gxf5 {[%clk 0:01:25.7]} 26... gxf5 {[%clk 0:02:02.1]} 27. Re6 {[%clk 0:01:24.3]}
27... f4 {[%clk 0:02:01]} 28. Rd1 {[%clk 0:01:23.1]} 28... f3 {[%clk 0:01:59]}
29. Rd3 {[%clk 0:01:16.9]} 29... Rf5 {[%clk 0:01:58.3]} 30. Re4 {[%clk
0:01:17.3]} 30... Rc5 {[%clk 0:01:38.2]} 31. Rexd4 {[%clk 0:01:16.4]} 31... Rc1+
{[%clk 0:01:39]} 32. Kh2 {[%clk 0:01:17.1]} 32... Rxd4 {[%clk 0:01:38.3]} 33.
Rxd4 {[%clk 0:01:19]} 33... Rc2 {[%clk 0:01:40]} 34. Kg3 {[%clk 0:01:19.6]}
34... Rxb2 {[%clk 0:01:40.8]} 35. Ra4 {[%clk 0:01:20.6]} 35... Rb6 {[%clk
0:01:41.8]} 36. Kxf3 {[%clk 0:01:21.3]} 36... Kh7 {[%clk 0:01:42.6]} 37. Kg3
{[%clk 0:01:22.5]} 37... Kg6 {[%clk 0:01:43.1]} 38. Ra5 {[%clk 0:01:23.6]} 38...
Rc6 {[%clk 0:01:42.3]} 39. f4 {[%clk 0:01:24.4]} 39... Kf6 {[%clk 0:01:42.9]}
40. Kg4 {[%clk 0:01:25.6]} 40... g6 {[%clk 0:01:43.9]} 41. h4 {[%clk 0:01:26.1]}
41... Rb6 {[%clk 0:01:41.8]} 42. f5 {[%clk 0:01:23.3]} 42... gxf5+ {[%clk
0:01:42.9]} 43. Rxf5+ {[%clk 0:01:23.5]} 43... Kg6 {[%clk 0:01:44.1]} 44. Ra5
{[%clk 0:01:24.8]} 44... Rb4+ {[%clk 0:01:44.2]} 45. Kg3 {[%clk 0:01:25.9]}
45... Rb6 {[%clk 0:01:45.6]} 46. h5+ {[%clk 0:01:25.4]} 1/2-1/2

[Event "*** Titled Tuesday 3|2 Blitz"]
[Site "Chess.com"]
[Date "2015.06.02"]
[Round "2"]
[White "DanielNaroditsky"]
[Black "LittlePeasant"]
[Result "1-0"]
[WhiteElo "2533"]
[BlackElo "2346"]
[TimeControl "180+2"]
[EndTime "11:19:37 PDT"]
[Termination "DanielNaroditsky won by resignation"]

1. e4 {[%clk 0:03:01.9]} 1... c5 {[%clk 0:03:00.2]} 2. Nf3 {[%clk 0:03:02.2]}
2... e6 {[%clk 0:03:01.4]} 3. d4 {[%clk 0:03:03.3]} 3... cxd4 {[%clk 0:03:03.3]}
4. Nxd4 {[%clk 0:03:03.4]} 4... Nc6 {[%clk 0:03:05]} 5. Nc3 {[%clk 0:03:04]}
5... Qc7 {[%clk 0:03:06]} 6. g3 {[%clk 0:03:05.4]} 6... a6 {[%clk 0:03:07.1]} 7.
Bg2 {[%clk 0:03:06.8]} 7... Nf6 {[%clk 0:03:08.7]} 8. O-O {[%clk 0:03:07.2]}
8... h5 {[%clk 0:03:10]} 9. h3 {[%clk 0:03:04.3]} 9... Bc5 {[%clk 0:03:06.3]}
10. Be3 {[%clk 0:03:05.5]} 10... d6 {[%clk 0:03:06.9]} 11. Qd2 {[%clk
0:02:46.3]} 11... Nxd4 {[%clk 0:02:55.1]} 12. Bxd4 {[%clk 0:02:47.1]} 12... Bxd4
{[%clk 0:02:55.9]} 13. Qxd4 {[%clk 0:02:47.9]} 13... e5 {[%clk 0:02:57.5]} 14.
Qd2 {[%clk 0:02:48]} 14... Be6 {[%clk 0:02:57]} 15. Rad1 {[%clk 0:02:43.1]}
15... Rd8 {[%clk 0:02:51]} 16. f4 {[%clk 0:02:44.2]} 16... O-O {[%clk
0:02:44.4]} 17. Kh1 {[%clk 0:02:31]} 17... exf4 {[%clk 0:02:31.7]} 18. gxf4
{[%clk 0:02:13.1]} 18... Rfe8 {[%clk 0:02:28.6]} 19. Rg1 {[%clk 0:02:11.6]}
19... Qc5 {[%clk 0:02:23.3]} 20. f5 {[%clk 0:02:06.7]} 20... Bc8 {[%clk
0:02:16]} 21. Bf3 {[%clk 0:02:08]} 21... Qe5 {[%clk 0:01:02.2]} 22. Qg2 {[%clk
0:01:54.7]} 22... Kf8 {[%clk 0:00:27.4]} 23. Qxg7+ {[%clk 0:01:47.1]} 23... Ke7
{[%clk 0:00:28.9]} 24. Rg6 {[%clk 0:01:34]} 24... d5 {[%clk 0:00:12.7]} 25. Rxd5
{[%clk 0:01:25.2]} 25... Rxd5 {[%clk 0:00:06.6]} 26. Nxd5+ {[%clk 0:01:26]}
26... Kd8 {[%clk 0:00:03.9]} 27. Qxf6+ {[%clk 0:01:25.8]} 1-0